[Event "Djerba Festival Open-A 2024"]
[Site "Djerba"]
[Date "2024.02.18"]
[Round "1.8"]
[White "Kadi, Mohamed El Mouldi"]
[Black "Abbes, Ali"]
[Result "1/2-1/2"]
[ECO "B33"]
[WhiteElo "2067"]
[BlackElo "2218"]
[Annotator "RC"]
[PlyCount "106"]
[EventDate "2024.02.18"]
[EventType "swiss"]
[EventCountry "TUN"]
[SourceTitle "playchess.com"]
[Source "ChessBase"]
[SourceQuality "1"]
[TimeControl "5400+30"]

1. e4 {[%emt 0:00:42]} c5 {[%emt 0:04:03]} 2. Nf3 {[%emt 0:00:05]} Nc6 {[%emt 0:00:31]} 3. d4 {[%emt 0:00:08]} cxd4 {[%emt 0:00:12]} 4. Nxd4 {[%emt 0:00:02]} e5 {[%emt 0:00:31]} 5. Nb5 {[%emt 0:00:53]} d6 {[%emt 0:00:23]} 6. N1c3 {[%emt 0:00:03]} a6 {[%emt 0:00:08]} 7. Na3 {[%emt 0:00:10]} b5 {[%emt 0:00:22]} 8. Nd5 {[%emt 0:00:55]} Nf6 {[%emt 0:00:10]} 9. Be3 {[%emt 0:01:35]} Rb8 {[%emt 0:01:18]} 10. f3 {[%emt 0:01:28]} Nxd5 {[%emt 0:01:05]} 11. exd5 {[%emt 0:00:11]} Ne7 {[%emt 0:00:10]} 12. c4 {[%emt 0:02:08]} Nf5 {[%emt 0:01:36]} 13. Bf2 {[%emt 0:01:58]} b4 {[%emt 0:00:44]} 14. Nc2 {[%emt 0:00:28]} Be7 {[%emt 0:00:22]} 15. Bd3 {[%emt 0:05:43]} O-O {[%emt 0:01:23]} 16. O-O {[%emt 0:02:21]} Nh4 {[%emt 0:03:32]} 17. Qe1 {[%emt 0:06:09]} a5 {[%emt 0:02:34]} 18. b3 {[%emt 0:02:45]} Ng6 {[%emt 0:00:19]} 19. Ne3 {[%emt 0:03:22]} Nf4 {[%emt 0:01:00]} 20. Bc2 {[%emt 0:02:41]} Bf6 {[%emt 0:03:26]} 21. Rc1 {[%emt 0:10:47]} g6 {[%emt 0:01:47]} 22. Bb1 {[%emt 0:02:27]} Bg7 {[%emt 0:01:12]} 23. Bh4 {[%emt 0:08:11]} Bf6 {[%emt 0:01:12]} 24. Bf2 {[%emt 0:03:22]} Bd7 {[%emt 0:01:36]} 25. Qd2 {[%emt 0:03:33]} Rc8 {[%emt 0:03:14]} 26. Rfd1 {[%emt 0:01:05]} Bg5 {[%emt 0:01:10]} 27. Qe1 {[%emt 0:01:45]} Re8 {[%emt 0:00:21]} 28. Nf1 {[%emt 0:08:48]} Nh5 {[%emt 0:02:07]} 29. Be3 {[%emt 0:01:13]} f5 {[%emt 0:00:33]} 30. c5 {[%emt 0:02:32]} Bxe3+ {[%emt 0:08:56]} 31. Qxe3 {[%emt 0:00:40]} Bb5 {[%emt 0:02:08]} 32. c6 {[%emt 0:03:55]} Nf4 {[%emt 0:00:31]} 33. Rd2 {[%emt 0:00:32]} Re7 {[%emt 0:03:04]} 34. g3 {[%emt 0:04:27]} Nh5 {[%emt 0:00:27]} 35. Qg5 {[%emt 0:02:31]} Bxf1 {[%emt 0:07:40]} 36. Kxf1 {[%emt 0:04:21]} e4 {[%emt 0:00:20]} 37. Re1 {[%emt 0:02:13]} Rf7 {[%emt 0:12:55]} 38. Qxd8+ {[%emt 0:00:41]} Rxd8 {[%emt 0:00:06]} 39. fxe4 {[%emt 0:00:52]} fxe4+ {[%emt 0:01:03]} 40. Kg2 {[%emt 0:02:01]} Nf6 {[%emt 0:01:13]} 41. Bxe4 {[%emt 0:00:34]} Re7 {[%emt 0:03:52]} 42. Rde2 {[%emt 0:00:02]} Rde8 {[%emt 0:00:32]} 43. Bf3 {[%emt 0:00:22]} Kf8 {[%emt 0:06:58]} 44. Rxe7 {[%emt 0:00:18]} Rxe7 {[%emt 0:00:05]} 45. Rxe7 {[%emt 0:00:10]} Kxe7 {[%emt 0:00:07]} 46. Kf2 {[%emt 0:00:01]} Ne8 {[%emt 0:00:18]} 47. Ke3 {[%emt 0:01:09]} Nc7 {[%emt 0:00:17]} 48. Kd4 {[%emt 0:04:18]} Nb5+ {[%emt 0:00:10]} 49. Kc4 {[%emt 0:00:41]} Na3+ {[%emt 0:00:18]} 50. Kd3 {[%emt 0:00:30]} Nb5 {[%emt 0:00:12]} 51. Kc4 {[%emt 0:02:34]} Na3+ {[%emt 0:00:09]} 52. Kd4 {[%emt 0:00:21]} Nb5+ {[%emt 0:00:10]} 53. Kc4 {[%emt 0:03:03]} Na3+ {[%emt 0:28:28]} 1/2-1/2

[Event "Djerba Festival Open-A 2024"]
[Site "Djerba"]
[Date "2024.02.18"]
[Round "1.9"]
[White "Barbaria, Yacine"]
[Black "Nassr, Lina"]
[Result "0-1"]
[ECO "B23"]
[WhiteElo "2206"]
[BlackElo "2051"]
[Annotator "RC"]
[PlyCount "84"]
[EventDate "2024.02.18"]
[EventType "swiss"]
[EventCountry "TUN"]
[SourceTitle "playchess.com"]
[Source "ChessBase"]
[SourceQuality "1"]
[TimeControl "5400+30"]

1. e4 {[%emt 0:00:04]} c5 {[%emt 0:00:17]} 2. Nc3 {[%emt 0:00:06]} e6 {[%emt 0:00:12]} 3. f4 {[%emt 0:00:10]} Nc6 {[%emt 0:00:19]} 4. Nf3 {[%emt 0:00:57]} d5 {[%emt 0:00:53]} 5. d3 {[%emt 0:00:27]} d4 {[%emt 0:02:19]} 6. Nb1 {[%emt 0:00:15]} f5 {[%emt 0:02:48]} 7. Nbd2 {[%emt 0:08:02]} Nf6 {[%emt 0:03:11]} 8. g3 {[%emt 0:01:17]} Be7 {[%emt 0:05:23]} 9. Bg2 {[%emt 0:00:31]} O-O {[%emt 0:04:09]} 10. O-O {[%emt 0:00:46]} Rb8 {[%emt 0:05:19]} 11. Re1 {[%emt 0:02:28]} Ng4 {[%emt 0:07:36]} 12. Nc4 {[%emt 0:04:14]} b5 {[%emt 0:04:03]} 13. Nce5 {[%emt 0:09:29]} Ngxe5 {[%emt 0:03:44]} 14. fxe5 {[%emt 0:03:46]} fxe4 {[%emt 0:01:55]} 15. Rxe4 {[%emt 0:00:27]} Bb7 {[%emt 0:06:25]} 16. Nh4 {[%emt 0:31:13]} Nb4 {[%emt 0:09:47]} 17. a3 {[%emt 0:06:21]} Nd5 {[%emt 0:11:21]} 18. Qg4 {[%emt 0:04:03]} Qd7 {[%emt 0:05:56]} 19. Bd2 {[%emt 0:06:24]} Rf7 {[%emt 0:02:24]} 20. Bh3 {[%emt 0:04:36]} Nc7 {[%emt 0:00:48]} 21. Rf4 {[%emt 0:01:40]} Rxf4 {[%emt 0:02:48]} 22. Bxf4 {[%emt 0:04:19]} Bxh4 {[%emt 0:05:47]} 23. gxh4 {[%emt 0:00:06]} Rf8 {[%emt 0:02:17]} 24. Rf1 {[%emt 0:05:57]} Qd5 {[%emt 0:04:54]} 25. Bg2 {[%emt 0:00:08]} Qxg2+ {[%emt 0:00:06]} 26. Qxg2 {[%emt 0:00:03]} Bxg2 {[%emt 0:00:05]} 27. Kxg2 {[%emt 0:00:04]} Rf5 {[%emt 0:02:42]} 28. Kf3 {[%emt 0:02:21]} h6 {[%emt 0:03:14]} 29. Ke4 {[%emt 0:00:57]} g5 {[%emt 0:00:43]} 30. hxg5 {[%emt 0:00:58]} hxg5 {[%emt 0:00:09]} 31. Rf2 {[%emt 0:02:12]} Rxf4+ {[%emt 0:00:34]} 32. Rxf4 {[%emt 0:00:05]} gxf4 {[%emt 0:00:04]} 33. Kxf4 {[%emt 0:00:05]} Nd5+ {[%emt 0:01:20]} 34. Ke4 {[%emt 0:00:08]} Ne3 {[%emt 0:01:25]} 35. c4 {[%emt 0:00:58]} bxc4 {[%emt 0:00:57]} 36. dxc4 {[%emt 0:00:14]} a5 {[%emt 0:00:34]} 37. b4 {[%emt 0:00:34]} cxb4 {[%emt 0:00:48]} 38. axb4 {[%emt 0:00:24]} a4 {[%emt 0:01:34]} 39. Kxd4 {[%emt 0:01:05]} a3 {[%emt 0:00:09]} 40. Kc3 {[%emt 0:00:18]} Nxc4 {[%emt 0:00:11]} 41. Kb3 {[%emt 0:00:07]} Kg7 {[%emt 0:00:33]} 42. b5 {[%emt 0:00:15]} Kg6 {[%emt 0:00:18]} 0-1

[Event "Djerba Festival Open-A 2024"]
[Site "Djerba"]
[Date "2024.02.19"]
[Round "2.3"]
[White "Araoune, Saadi"]
[Black "Eden, James"]
[Result "0-1"]
[ECO "D15"]
[WhiteElo "2077"]
[BlackElo "2319"]
[Annotator "RC"]
[PlyCount "160"]
[EventDate "2024.02.18"]
[EventType "swiss"]
[EventCountry "TUN"]
[SourceTitle "playchess.com"]
[Source "ChessBase"]
[SourceQuality "1"]
[TimeControl "5400+30"]

1. d4 {[%emt 0:00:03]} Nf6 {[%emt 0:00:55]} 2. c4 {[%emt 0:00:04]} c6 {[%emt 0:00:47]} 3. Nc3 {[%emt 0:00:24]} d5 {[%emt 0:00:09]} 4. e3 {[%emt 0:00:19]} a6 {[%emt 0:00:24]} 5. Nf3 {[%emt 0:01:06]} Bf5 {[%emt 0:00:18]} 6. Qb3 {[%emt 0:00:46]} Ra7 {[%emt 0:00:10]} 7. Nh4 {[%emt 0:01:02]} Be4 {[%emt 0:00:59]} 8. f3 {[%emt 0:00:52]} dxc4 {[%emt 0:00:44]} 9. Qxc4 {[%emt 0:01:15]} Bd5 {[%emt 0:01:44]} 10. Qe2 {[%emt 0:02:30]} b5 {[%emt 0:06:15]} 11. Qf2 {[%emt 0:05:37]} b4 {[%emt 0:13:30]} 12. Na4 {[%emt 0:14:18]} Qa5 {[%emt 0:13:21]} 13. b3 {[%emt 0:02:18]} c5 {[%emt 0:01:03]} 14. e4 {[%emt 0:15:11]} Bc6 {[%emt 0:04:56]} 15. Nxc5 {[%emt 0:01:32]} e6 {[%emt 0:00:45]} 16. Nd3 {[%emt 0:14:55]} Be7 {[%emt 0:02:08]} 17. d5 {[%emt 0:04:19]} Rc7 {[%emt 0:05:26]} 18. dxc6 {[%emt 0:09:27]} g5 {[%emt 0:02:47]} 19. Bb2 {[%emt 0:02:13]} Nxc6 {[%emt 0:01:59]} 20. Be2 {[%emt 0:15:47]} gxh4 {[%emt 0:01:46]} 21. Qxh4 {[%emt 0:01:16]} e5 {[%emt 0:02:53]} 22. Qf2 {[%emt 0:03:02]} Rd7 {[%emt 0:01:22]} 23. Rc1 {[%emt 0:00:49]} Nd4 {[%emt 0:01:13]} 24. Bxd4 {[%emt 0:01:53]} Rxd4 {[%emt 0:00:35]} 25. Rc2 {[%emt 0:00:39]} Nd7 {[%emt 0:10:55]} 26. Qg3 {[%emt 0:00:58]} Rd6 {[%emt 0:01:44]} 27. O-O {[%emt 0:00:49]} Rg6 {[%emt 0:01:04]} 28. Qf2 {[%emt 0:00:16]} Bd8 {[%emt 0:04:49]} 29. Kh1 {[%emt 0:00:30]} O-O {[%emt 0:00:36]} 30. Rd1 {[%emt 0:00:41]} Kh8 {[%emt 0:01:52]} 31. Nxb4 {[%emt 0:00:33]} Qxb4 {[%emt 0:00:43]} 32. Rxd7 {[%emt 0:00:05]} Bb6 {[%emt 0:00:52]} 33. Qf1 {[%emt 0:00:24]} Bd4 {[%emt 0:00:34]} 34. Bc4 {[%emt 0:00:32]} Rg7 {[%emt 0:01:01]} 35. Qc1 {[%emt 0:00:29]} a5 {[%emt 0:00:32]} 36. Re2 {[%emt 0:00:39]} a4 {[%emt 0:00:34]} 37. Qd2 {[%emt 0:00:11]} Qb6 {[%emt 0:00:38]} 38. Qc2 {[%emt 0:00:39]} Rc8 {[%emt 0:01:02]} 39. Qd3 {[%emt 0:00:52]} axb3 {[%emt 0:00:36]} 40. axb3 {[%emt 0:00:19]} Ra8 {[%emt 0:00:33]} 41. Re1 {[%emt 0:00:35]} Qf6 {[%emt 0:03:17]} 42. Qd2 {[%emt 0:00:32]} Rag8 {[%emt 0:00:24]} 43. Bf1 {[%emt 0:00:13]} Qxf3 {[%emt 0:00:38]} 44. b4 {[%emt 0:01:36]} Bc3 {[%emt 0:01:43]} 45. Qe2 {[%emt 0:00:00]} Qf6 {[%emt 0:01:52]} 46. Rb1 {[%emt 0:00:21]} Rg4 {[%emt 0:00:46]} 47. Qc4 {[%emt 0:00:24]} Rf4 {[%emt 0:00:44]} 48. Rxf7 {[%emt 0:00:30]} Qxf7 {[%emt 0:00:28]} 49. Qxf7 {[%emt 0:00:13]} Rxf7 {[%emt 0:00:08]} 50. Bc4 {[%emt 0:00:00]} Rb7 {[%emt 0:01:13]} 51. Bxg8 {[%emt 0:00:21]} Kxg8 {[%emt 0:00:08]} 52. b5 {[%emt 0:00:03]} Bd4 {[%emt 0:00:26]} 53. g4 {[%emt 0:00:27]} Kf7 {[%emt 0:00:20]} 54. Kg2 {[%emt 0:00:26]} Kg6 {[%emt 0:00:35]} 55. h4 {[%emt 0:00:13]} Kf6 {[%emt 0:00:52]} 56. Rc1 {[%emt 0:00:46]} h6 {[%emt 0:02:40]} 57. g5+ {[%emt 0:00:32]} hxg5 {[%emt 0:00:18]} 58. Rc6+ {[%emt 0:00:04]} Kg7 {[%emt 0:00:21]} 59. hxg5 {[%emt 0:00:04]} Rxb5 {[%emt 0:00:32]} 60. Kf3 {[%emt 0:00:12]} Rb6 {[%emt 0:00:33]} 61. Rc7+ {[%emt 0:00:31]} Kg6 {[%emt 0:01:23]} 62. Kg4 {[%emt 0:00:04]} Be3 {[%emt 0:00:50]} 63. Rc8 {[%emt 0:00:15]} Bf4 {[%emt 0:00:16]} 64. Ra8 {[%emt 0:00:58]} Rb7 {[%emt 0:04:38]} 65. Ra6+ {[%emt 0:00:54]} Kh7 {[%emt 0:00:22]} 66. Rh6+ {[%emt 0:01:09]} Kg7 {[%emt 0:00:49]} 67. Ra6 {[%emt 0:00:01]} Rf7 {[%emt 0:00:49]} 68. Kh5 {[%emt 0:00:24]} Be3 {[%emt 0:01:15]} 69. Rg6+ {[%emt 0:00:24]} Kf8 {[%emt 0:00:12]} 70. Re6 {[%emt 0:00:54]} Re7 {[%emt 0:00:33]} 71. Rf6+ {[%emt 0:00:12]} Kg8 {[%emt 0:00:12]} 72. Rc6 {[%emt 0:01:08]} Rh7+ {[%emt 0:00:29]} 73. Kg4 {[%emt 0:00:48]} Rf7 {[%emt 0:01:47]} 74. Kh5 {[%emt 0:00:25]} Rf4 {[%emt 0:00:59]} 75. Kg6 {[%emt 0:00:22]} Kf8 {[%emt 0:00:12]} 76. Rf6+ {[%emt 0:00:44]} Ke7 {[%emt 0:00:09]} 77. Rc6 {[%emt 0:00:45]} Rg4 {[%emt 0:00:19]} 78. Rc7+ {[%emt 0:01:16]} Kd6 {[%emt 0:00:19]} 79. Rc3 {[%emt 0:00:24]} Bf4 {[%emt 0:00:31]} 80. Kf6 {[%emt 0:00:36]} Rxg5 {[%emt 0:00:23]} 0-1

[Event "Djerba Festival Open-A 2024"]
[Site "Djerba"]
[Date "2024.02.19"]
[Round "2.5"]
[White "Rudzinska, Michalina"]
[Black "Nassr, Lina"]
[Result "0-1"]
[ECO "B51"]
[WhiteElo "2241"]
[BlackElo "2051"]
[Annotator "TA"]
[PlyCount "121"]
[EventDate "2024.02.18"]
[EventType "swiss"]
[EventCountry "TUN"]
[SourceTitle "playchess.com"]
[Source "ChessBase"]
[SourceQuality "1"]
[TimeControl "5400+30"]

{[%evp 9,121,11,18,20,42,35,47,16,29,-17,0,-26,-26,-25,12,7,8,-32,7,-10,0,0,0,-16,-14,-9,-19,-54,-41,-45,-35,-47,30,-10,-13,-5,-20,-35,0,0,0,-27,-22,-31,-25,-38,-35,-35,-28,-56,-36,-21,-35,-35,-57,-107,-90,-122,-82,-125,-82,-128,-121,-135,-133,-143,-149,-128,-154,-142,-100,-177,-174,-414,-376,-407,-375,-612,-581,-581,-575,-575,-566,-586,-593,-593,-582,-582,-575,-566,-552,-796,-631,-681,-597,-581,-543,-952,-1229,-1278,-1210,-1191,-919,-1227,-1179,-1766,-1333,-6087,-5716,-29969,-29970,-29976,-29974,-29982]} 1. e4 {[%emt 0:00:03]} c5 {[%emt 0:00:32]} 2. Nf3 {[%emt 0:00:06]} d6 {[%emt 0:00:05]} 3. Bb5+ {[%emt 0:00:03]} Nd7 {[%emt 0:01:42]} 4. O-O {[%emt 0:00:05]} a6 {[%emt 0:00:03]} 5. Bd3 {[%emt 0:00:04]} Ngf6 {[%emt 0:00:19]} 6. c3 {[%emt 0:00:07]} g6 {[%emt 0:02:48]} 7. Bc2 {[%emt 0:00:11]} Bg7 {[%emt 0:00:12]} 8. Re1 {[%emt 0:00:56] White is slightly better.} O-O {[%emt 0:01:50]} 9. d3 {[%emt 0:02:44]} (9. a4 {deserves consideration.}) 9... b5 $11 {[%emt 0:05:59]} 10. Nbd2 {[%emt 0:00:11]} Bb7 {[%emt 0:00:32]} 11. Nf1 {[%emt 0:00:17]} Nb8 {[%emt 0:10:47]} 12. Ng3 {[%emt 0:05:03]} Nc6 {[%emt 0:02:17]} 13. h4 {[%emt 0:01:41][%cal Bh2h4,Bh4h5,Bh5h6][%mdl 32]} Bc8 {[%emt 0:03:27] [#]} 14. h5 $1 {[%emt 0:05:08]} Bg4 {[%emt 0:01:27]} (14... Ng4 15. Bb3) 15. h6 {[%emt 0:00:03]} Bh8 {[%emt 0:00:06]} 16. Qd2 {[%emt 0:00:42]} Bxf3 {[%emt 0:14:22]} 17. gxf3 {[%emt 0:00:09]} b4 {[%emt 0:00:06]} 18. Qg5 {[%emt 0:32:30]} bxc3 {[%emt 0:02:22]} 19. bxc3 {[%emt 0:00:05]} Nd7 {[%emt 0:03:05][%cal Bf6d7,Bd7e5,Be5f3,Bf3e1][%mdl 32]} 20. Bd2 {[%emt 0:01:32]} e6 {[%emt 0:00:55]} (20... Qa5 $15 21. Ne2 (21. d4 Bf6 $17) 21... Rab8) 21. Qe3 {[%emt 0:02:53]} d5 {[%emt 0:08:15]} 22. exd5 {[%emt 0:01:50]} exd5 {[%emt 0:00:07]} 23. Qf4 {[%emt 0:09:07]} Nde5 {[%emt 0:03:27]} 24. Kg2 {[%emt 0:02:22]} Rb8 {[%emt 0:04:43]} 25. Qa4 {[%emt 0:02:44][%cal Of3f4] Strongly threatening f4!} d4 {[%emt 0:04:23]} 26. f4 {[%emt 0:02:23]} Qd5+ {[%emt 0:01:54]} 27. Ne4 {[%emt 0:00:26]} dxc3 {[%emt 0:01:07]} 28. Bxc3 {[%emt 0:00:58] [#]} Nf3 {[%emt 0:04:30] Really sharp!} 29. Bxh8 $1 {[%emt 0:09:00] A strong pair of Bishops.} Nxe1+ {[%emt 0:00:34]} 30. Rxe1 {[%emt 0:00:04]} Kxh8 {[%emt 0:01:39]} 31. Bb3 $1 {[%emt 0:00:36]} Qd7 {[%emt 0:01:19]} (31... Qxd3 $2 32. Qxc6 Qd4 33. Kg3 $18 (33. Qxc5 Qxc5 34. Nxc5 Rbd8 $18)) 32. Nf6 {[%emt 0:01:20] Inhibits Qg4+.} (32. Qxa6 $15 f6 33. f3) 32... Qc7 {[%emt 0:01:26]} (32... Qxd3 $2 33. Qxc6 Rbc8 34. Qe4 $18) 33. Qe4 {[%emt 0:05:43][%cal Of6e8]} Nd4 {[%emt 0:07:50]} 34. Bc4 {[%emt 0:00:19][%cal Of6e8]} a5 {[%emt 0:00:47]} 35. Qe5 {[%emt 0:05:21]} ({White should play} 35. Ne8 Qc6 (35... Rfxe8 36. Qxe8+ Rxe8 37. Rxe8#) 36. Qxc6 Nxc6 37. Nd6) 35... Qxe5 {[%emt 0:01:34]} 36. fxe5 {[%emt 0:00:21] [#]} Rb7 {[%emt 0:01:10] Prevents Nd7} 37. Kg3 {[%emt 0:00:15]} Nf5+ {[%emt 0:00:00]} 38. Kf4 {[%emt 0:00:13]} Rb2 {[%emt 0:00:00]} (38... Nxh6 39. Rh1 Kg7 40. Kg5 $16) 39. Ng4 {[%emt 0:03:21]} a4 {[%emt 0:02:42]} 40. Ke4 {[%emt 0:01:25]} (40. Kg5 $17 {was called for.}) 40... Rd8 $19 {[%emt 0:02:13] And now ...Nh4 would win.} 41. Bxf7 $2 {[%emt 0:01:53]} (41. Kf3) 41... Rd4+ {[%emt 0:00:07]} 42. Kf3 {[%emt 0:00:06]} Rxd3+ {[%emt 0:00:16]} 43. Kf4 $2 {[%emt 0:00:25]} (43. Ne3) 43... Rd4+ {[%emt 0:01:32]} 44. Kg5 {[%emt 0:00:39] [#]} Rxg4+ $1 {[%emt 0:00:11][%mdl 512]} 45. Kxg4 {[%emt 0:00:36] Black must now prevent Kg5.} Nxh6+ {[%emt 0:00:07]} 46. Kf3 {[%emt 0:01:34]} Nxf7 {[%emt 0:00:07][%mdl 4096] Endgame. KRN-KR} 47. e6 {[%emt 0:00:11]} Ng5+ {[%emt 0:00:18]} 48. Kg3 {[%emt 0:00:47] [#]} Nxe6 {[%emt 0:00:19]} 49. Rxe6 {[%emt 0:00:04]} Rxa2 {[%emt 0:00:17] ...a3 would now be deadly. KR-KR} 50. Re7 {[%emt 0:00:18]} Rb2 {[%emt 0:00:40] ...a3 is the strong threat.} 51. Ra7 {[%emt 0:00:06]} Rb6 {[%emt 0:00:28]} 52. Rxa4 {[%emt 0:00:16]} Rc6 {[%emt 0:00:06] aiming for ...c4.} 53. Kf3 {[%emt 0:00:13]} c4 {[%emt 0:00:17]} 54. Ke2 {[%emt 0:00:10]} Rc7 {[%emt 0:00:23]} 55. Kd2 {[%emt 0:00:10]} Kg7 {[%emt 0:00:14]} 56. Kc3 {[%emt 0:00:15]} h5 {[%emt 0:00:06]} 57. f4 {[%emt 0:00:19]} Kf6 {[%emt 0:00:10]} 58. Ra5 {[%emt 0:00:24]} h4 {[%emt 0:00:06] ( -> ...h3)} 59. Ra1 {[%emt 0:00:41]} Kf5 {[%emt 0:00:07]} 60. Rg1 {[%emt 0:01:19]} h3 {[%emt 0:00:47]} 61. Kd4 {[%emt 0:08:13] Weighted Error Value: White=0.41/Black=0.18 (very precise) .  Mistake:       	White=6     	Black=1      Inaccurate:     	White=10    	Black=5      OK:         	White=12    	Black=18     Best:        	White=1     	Black=2      Strong:       	White=2     	---        Brilliant:      	---       	Black=1} 0-1

[Event "Djerba Festival Open-A 2024"]
[Site "Djerba"]
[Date "2024.02.19"]
[Round "2.9"]
[White "Levacic, Damir"]
[Black "Mohebbi, Jafar"]
[Result "1/2-1/2"]
[ECO "A41"]
[WhiteElo "2112"]
[BlackElo "2259"]
[Annotator "RC"]
[PlyCount "161"]
[EventDate "2024.02.18"]
[EventType "swiss"]
[EventCountry "TUN"]
[SourceTitle "playchess.com"]
[Source "ChessBase"]
[SourceQuality "1"]
[TimeControl "5400+30"]

1. d4 {[%emt 0:00:06]} d6 {[%emt 0:00:23]} 2. g3 {[%emt 0:03:10]} e5 {[%emt 0:01:49]} 3. dxe5 {[%emt 0:00:13]} dxe5 {[%emt 0:00:10]} 4. Qxd8+ {[%emt 0:00:06]} Kxd8 {[%emt 0:00:11]} 5. Nc3 {[%emt 0:00:06]} c6 {[%emt 0:07:54]} 6. f4 {[%emt 0:00:44]} Bb4 {[%emt 0:08:03]} 7. fxe5 {[%emt 0:04:19]} Bf5 {[%emt 0:03:40]} 8. Nf3 {[%emt 0:07:34]} Bxc2 {[%emt 0:03:27]} 9. Bh3 {[%emt 0:09:28]} Na6 {[%emt 0:21:25]} 10. Ng5 {[%emt 0:07:11]} Nh6 {[%emt 0:04:11]} 11. Rf1 {[%emt 0:04:13]} Ke7 {[%emt 0:03:53]} 12. Bd2 {[%emt 0:03:36]} Rhe8 {[%emt 0:03:14]} 13. a3 {[%emt 0:03:24]} Bxc3 {[%emt 0:09:03]} 14. Bxc3 {[%emt 0:00:27]} Kf8 {[%emt 0:01:32]} 15. Rc1 {[%emt 0:12:24]} Bg6 {[%emt 0:00:48]} 16. Rd1 {[%emt 0:00:42]} Re7 {[%emt 0:08:17]} 17. e6 {[%emt 0:09:02]} Kg8 {[%emt 0:07:28]} 18. Rf4 {[%emt 0:06:48]} fxe6 {[%emt 0:03:13]} 19. Bxe6+ {[%emt 0:02:03]} Kh8 {[%emt 0:00:27]} 20. Rfd4 {[%emt 0:05:01]} Rae8 {[%emt 0:02:16]} 21. Rd8 {[%emt 0:01:27]} Nc7 {[%emt 0:00:22]} 22. Rxe8+ {[%emt 0:01:18]} Bxe8 {[%emt 0:02:39]} 23. Bc4 {[%emt 0:03:43]} b5 {[%emt 0:02:03]} 24. Bb3 {[%emt 0:00:36]} c5 {[%emt 0:00:56]} 25. Ba5 {[%emt 0:02:07]} c4 {[%emt 0:00:41]} 26. Bc2 {[%emt 0:02:12]} g6 {[%emt 0:02:25]} 27. Rd8 {[%emt 0:02:17]} Ne6 {[%emt 0:00:02]} 28. Nxe6 {[%emt 0:03:29]} Rxe6 {[%emt 0:00:02]} 29. Ra8 {[%emt 0:01:53]} a6 {[%emt 0:00:57]} 30. b3 {[%emt 0:00:14]} Nf5 {[%emt 0:00:32]} 31. Bxf5 {[%emt 0:01:36]} gxf5 {[%emt 0:00:02]} 32. bxc4 {[%emt 0:01:04]} bxc4 {[%emt 0:00:02]} 33. Bc3+ {[%emt 0:00:19]} Kg8 {[%emt 0:00:10]} 34. Ra7 {[%emt 0:00:23]} Bh5 {[%emt 0:00:44]} 35. Rg7+ {[%emt 0:00:54]} Kf8 {[%emt 0:00:02]} 36. Rxh7 {[%emt 0:00:27]} Bxe2 {[%emt 0:00:17]} 37. Rh8+ {[%emt 0:01:32]} Ke7 {[%emt 0:00:29]} 38. Kd2 {[%emt 0:00:19]} Bd3 {[%emt 0:00:19]} 39. Bb4+ {[%emt 0:00:24]} Kf7 {[%emt 0:00:36]} 40. Rh7+ {[%emt 0:01:32]} Kg6 {[%emt 0:00:41]} 41. Rh4 {[%emt 0:00:42]} Re2+ {[%emt 0:01:04]} 42. Kc3 {[%emt 0:00:02]} Ra2 {[%emt 0:00:27]} 43. Kd4 {[%emt 0:00:40]} a5 {[%emt 0:00:25]} 44. Bxa5 {[%emt 0:00:06]} Rxa3 {[%emt 0:00:13]} 45. Bd2 {[%emt 0:00:31]} Be2 {[%emt 0:00:24]} 46. Bc3 {[%emt 0:00:52]} Ra8 {[%emt 0:00:25]} 47. Rf4 {[%emt 0:00:49]} Rd8+ {[%emt 0:00:37]} 48. Kc5 {[%emt 0:00:10]} Rc8+ {[%emt 0:00:57]} 49. Kd4 {[%emt 0:00:11]} Rc7 {[%emt 0:01:04]} 50. h3 {[%emt 0:00:29]} Rd7+ {[%emt 0:00:23]} 51. Ke3 {[%emt 0:01:01]} Re7+ {[%emt 0:02:01]} 52. Kd4 {[%emt 0:00:29]} Kg5 {[%emt 0:00:19]} 53. Rf2 {[%emt 0:00:39]} Rd7+ {[%emt 0:00:58]} 54. Kc5 {[%emt 0:00:14]} Bd3 {[%emt 0:00:46]} 55. Be5 {[%emt 0:00:11]} Re7 {[%emt 0:00:22]} 56. Kd4 {[%emt 0:00:44]} Rd7+ {[%emt 0:00:27]} 57. Kc5 {[%emt 0:00:05]} Rh7 {[%emt 0:00:38]} 58. h4+ {[%emt 0:00:28]} Kg4 {[%emt 0:00:26]} 59. Rf4+ {[%emt 0:00:51]} Kh3 {[%emt 0:00:38]} 60. Rd4 {[%emt 0:01:02]} Re7 {[%emt 0:01:03]} 61. Kd6 {[%emt 0:00:10]} Rh7 {[%emt 0:00:39]} 62. Ke6 {[%emt 0:00:19]} Kg2 {[%emt 0:00:15]} 63. Kf6 {[%emt 0:00:22]} Rh6+ {[%emt 0:00:37]} 64. Kg5 {[%emt 0:00:35]} Rc6 {[%emt 0:00:14]} 65. h5 {[%emt 0:00:30]} f4 {[%emt 0:00:36]} 66. gxf4 {[%emt 0:00:42]} Bh7 {[%emt 0:00:33]} 67. Rd7 {[%emt 0:00:25]} Bb1 {[%emt 0:00:46]} 68. f5 {[%emt 0:00:21]} c3 {[%emt 0:00:11]} 69. Bxc3 {[%emt 0:01:31]} Rxc3 {[%emt 0:00:06]} 70. h6 {[%emt 0:00:20]} Rg3+ {[%emt 0:01:00]} 71. Kf6 {[%emt 0:00:07]} Rh3 {[%emt 0:00:41]} 72. h7 {[%emt 0:00:06]} Rh5 {[%emt 0:00:12]} 73. Rd2+ {[%emt 0:00:39]} Kg3 {[%emt 0:00:30]} 74. Kg7 {[%emt 0:01:18]} Rxh7+ {[%emt 0:00:34]} 75. Kxh7 {[%emt 0:00:04]} Bxf5+ {[%emt 0:00:02]} 76. Kh6 {[%emt 0:00:08]} Kf4 {[%emt 0:00:18]} 77. Re2 {[%emt 0:00:08]} Be4 {[%emt 0:00:25]} 78. Kg7 {[%emt 0:00:16]} Bf5 {[%emt 0:00:14]} 79. Kf6 {[%emt 0:00:05]} Be4 {[%emt 0:00:01]} 80. Re1 {[%emt 0:00:08]} Bf3 {[%emt 0:00:22]} 81. Ra1 {[%emt 0:04:07]} 1/2-1/2